lending/lending_fUSD_20240703
["ID","MTS","AMOUNT","RATE_DAILY","PERIOD"]
[330997450,1719997862687,-500.0,0.00021917,4]
[330997451,1719997862697,-500.0,0.00021917,4]
[330997452,1719997862707,-178.951572,0.00021917,4]
[330997453,1719997862717,-500.0,0.00021917,4]
[330997454,1719997862728,-260.54725752,0.00021917,4]
[330997455,1719997862739,-500.0,0.00021917,4]
[330997456,1719997862749,-500.0,0.00021917,4]
[330997457,1719997862759,-500.0,0.00021917,4]
[330997458,1719997862769,-500.0,0.00021917,4]
[330997459,1719997862780,-503.92110948,0.00021917,4]
[330997460,1719997862791,-500.0,0.00021917,4]
[330997461,1719997862801,-500.0,0.00021917,4]
[330997462,1719997862812,-500.0,0.00021917,4]
[330997463,1719997862822,-151.0,0.00021917,2]
[330997464,1719997862835,-501.61472263,0.00021917,4]
[330997465,1719997862846,-509.13540773,0.00021917,4]
[330997466,1719997862857,-151.0,0.00021917,2]
[330997467,1719997862866,-504.48485935,0.00021917,4]
[330997468,1719997862877,-500.0,0.00021917,4]
[330997469,1719997862889,-500.0,0.00021917,4]
[330997470,1719997862900,-591.74,0.00021917,4]
[330997471,1719997862910,-500.0,0.00021917,4]
[330997472,1719997862919,-264.82,0.00021917,4]
[330997473,1719997862930,-151.0,0.00021917,2]
[330997474,1719997862942,-607.95359617,0.00021917,4]
[330997475,1719997862952,-151.0,0.00021917,2]
[330997476,1719997862962,-151.0,0.00021917,2]
[330997477,1719997862972,-224.250228,0.00021917,2]
[330997478,1719997862982,-500.0,0.00021917,4]
[330997479,1719997862992,-500.0,0.00021917,4]
[330997480,1719997863002,-500.0,0.00021917,4]
[330997481,1719997863012,-500.0,0.00021917,4]
[330997482,1719997863023,-503.61120872,0.00021917,4]
[330997483,1719997863032,-500.0,0.00021917,4]
[330997484,1719997863042,-500.0,0.00021917,4]
[330997485,1719997863053,-500.0,0.00021917,4]
[330997486,1719997863062,-232.52,0.00021917,4]
[330997487,1719997863073,-500.0,0.00021917,4]
[330997488,1719997863082,-500.0,0.00021917,4]
[330997489,1719997863093,-500.0,0.00021917,4]
[330997490,1719997863104,-500.0,0.00021917,4]
[330997491,1719997863114,-500.0,0.00021917,4]
[330997492,1719997863125,-616.51,0.00021917,4]
[330997493,1719997863135,-500.0,0.00021917,4]
[330997494,1719997863145,-506.28161797,0.00021917,4]
[330997495,1719997863155,-315.74,0.00021917,4]
[330997496,1719997863165,-500.0,0.00021917,4]
[330997497,1719997863175,-500.0,0.00021917,4]
[330997498,1719997863185,-500.0,0.00021917,4]
[330997499,1719997863195,-500.0,0.00021917,4]
[330997500,1719997863204,-500.0,0.00021917,4]
[330997501,1719997863214,-435.70086155,0.00021917,4]
[330997502,1719997863223,-500.0,0.00021917,4]
[330997503,1719997863232,-500.0,0.00021917,4]
[330997504,1719997863243,-539.95,0.00021917,4]
[330997505,1719997863253,-502.29180322,0.00021917,4]
[330997506,1719997863262,-501.93111621,0.00021917,4]
[330997507,1719997863272,-500.0,0.00021917,4]
[330997508,1719997863282,-500.0,0.00021917,4]
[330997509,1719997863291,-566.96127129,0.00021917,4]
[330997510,1719997863301,-500.0,0.00021917,4]
[330997511,1719997863310,-534.86163116,0.00021917,4]
[330997512,1719997863320,-500.0,0.00021917,4]
[330997513,1719997863329,-500.0,0.00021917,4]
[330997514,1719997863339,-228.98,0.00021917,4]
[330997515,1719997863348,-500.0,0.00021917,4]
[330997516,1719997863358,-505.98715963,0.00021917,4]
[330997517,1719997863367,-500.68749493,0.00021917,4]
[330997518,1719997863376,-500.0,0.00021917,4]
[330997519,1719997863386,-500.0,0.00021917,4]
[330997520,1719997863395,-470.84524225,0.00021917,4]
[330997521,1719997863405,-500.0,0.00021917,4]
[330997522,1719997863415,-500.0,0.00021917,4]
[330997523,1719997863425,-500.0,0.00021917,4]
[330997524,1719997863435,-500.0,0.00021917,4]
[330997525,1719997863443,-557.26,0.00021917,4]
[330997526,1719997863453,-500.0,0.00021917,4]
[330997527,1719997863463,-500.0,0.00021917,4]
[330997528,1719997863473,-504.28631877,0.00021917,4]
[330997529,1719997863482,-500.0,0.00021917,4]
[330997530,1719997863492,-500.0,0.00021917,4]
[330997531,1719997863502,-500.0,0.00021917,4]
[330997532,1719997863512,-500.0,0.00021917,4]
[330997533,1719997863522,-500.0,0.00021917,4]
[330997534,1719997863532,-500.0,0.00021917,4]
[330997535,1719997863546,-557.96810623,0.00021917,4]
[330997536,1719997863556,-500.0,0.00021917,4]
[330997537,1719997863565,-597.35884499,0.00021917,4]
[330997538,1719997863575,-500.0,0.00021917,4]
[330997539,1719997863588,-500.0,0.00021917,4]
[330997540,1719997863597,-218.99184,0.00021917,2]
[330997541,1719997863608,-500.0,0.00021917,4]
[330997542,1719997863617,-542.0,0.00021917,4]
[330997543,1719997863629,-218.99184,0.00021917,2]
[330997544,1719997863639,-500.0,0.00021917,4]
[330997545,1719997863648,-218.99184,0.00021917,2]
[330997546,1719997863658,-500.0,0.00021917,4]
[330997547,1719997863667,-500.0,0.00021917,4]
[330997548,1719997863676,-586.68601743,0.00021917,4]
[330997549,1719997863686,-218.99184,0.00021917,2]
[330997550,1719997863696,-568.47,0.00021917,4]
[330997551,1719997863705,-500.0,0.00021917,4]
[330997552,1719997863714,-500.0,0.00021917,4]
[330997553,1719997863726,-218.99184,0.00021917,2]
[330997554,1719997863736,-500.0,0.00021917,4]
[330997555,1719997863745,-218.99184,0.00021917,2]
[330997556,1719997863755,-501.5317751,0.00021917,4]
[330997557,1719997863765,-502.0847351,0.00021917,4]
[330997558,1719997863775,-500.0,0.00021917,4]
[330997559,1719997863785,-500.0,0.00021917,4]
[330997560,1719997863795,-500.0,0.00021917,4]
[330997561,1719997863805,-500.0,0.00021917,4]
[330997562,1719997863815,-500.0,0.00021917,4]
[330997563,1719997863824,-218.99184,0.00021917,2]
[330997564,1719997863834,-604.19,0.00021917,4]
[330997565,1719997863843,-500.0,0.00021917,4]
[330997566,1719997863853,-218.99184,0.00021917,2]
[330997567,1719997863863,-500.0,0.00021917,4]
[330997568,1719997863873,-500.0,0.00021917,4]
[330997569,1719997863883,-500.0,0.00021917,4]
[330997570,1719997863893,-500.0,0.00021917,4]
[330997571,1719997863903,-218.99184,0.00021917,2]
[330997572,1719997863913,-500.0,0.00021917,4]
[330997573,1719997863922,-215.24313487,0.00021917,4]
[330997574,1719997863932,-500.0,0.00021917,4]
[330997575,1719997863942,-496.7230449,0.00021917,4]
[330997576,1719997863952,-218.99184,0.00021917,2]
[330997577,1719997863962,-501.0986896,0.00021917,4]
[330997578,1719997863972,-500.0,0.00021917,4]
[330997579,1719997863983,-218.99184,0.00021917,2]
[330997580,1719997863992,-500.0,0.00021917,4]
[330997581,1719997864002,-500.0,0.00021917,4]
[330997582,1719997864011,-218.99184,0.00021917,2]
[330997583,1719997864021,-502.900893,0.00021917,4]
[330997584,1719997864031,-218.99184,0.00021917,2]
[330997585,1719997864041,-500.0,0.00021917,4]
[330997586,1719997864051,-218.99184,0.00021917,2]
[330997587,1719997864062,-152.050762,0.00021917,2]
[330997588,1719997864072,-218.99184,0.00021917,2]
[330997589,1719997864083,-500.0,0.00021917,4]
[330997590,1719997864095,-218.99184,0.00021917,2]
[330997591,1719997864106,-218.99184,0.00021917,2]
[330997592,1719997864115,-500.0,0.00021917,4]
[330997593,1719997864125,-500.0,0.00021917,4]
[330997594,1719997864134,-500.0,0.00021917,4]
[330997595,1719997864143,-500.0,0.00021917,4]
[330997596,1719997864153,-500.0,0.00021917,4]
[330997597,1719997864163,-502.6816644,0.00021917,4]
[330997598,1719997864172,-500.0,0.00021917,4]
[330997599,1719997864183,-218.991845,0.00021917,2]
[330997600,1719997864192,-500.0,0.00021917,4]
[330997601,1719997864202,-288.29,0.00021917,4]
[330997602,1719997864212,-500.0,0.00021917,4]
[330997603,1719997864223,-500.0,0.00021917,4]
[330997604,1719997864232,-500.0,0.00021917,4]
[330997605,1719997864242,-500.0,0.00021917,4]
[330997606,1719997864251,-500.0,0.00021917,4]
[330997607,1719997864261,-500.0,0.00021917,4]
[330997608,1719997864271,-506.3968549,0.00021917,4]
[330997609,1719997864280,-500.0,0.00021917,4]
[330997610,1719997864290,-500.0,0.00021917,4]
[330997611,1719997864299,-500.0,0.00021917,4]
[330997612,1719997864308,-500.0,0.00021917,4]
[330997613,1719997864318,-500.0,0.00021917,4]
[330997614,1719997864327,-500.0,0.00021917,4]
[330997615,1719997864337,-500.0,0.00021917,4]
[330997616,1719997864346,-500.0,0.00021917,4]
[330997617,1719997864355,-649.21750023,0.00021917,4]
[330997618,1719997864364,-500.0,0.00021917,4]
[330997619,1719997864373,-500.0,0.00021917,4]
[330997620,1719997864382,-500.0,0.00021917,4]
[330997621,1719997864392,-712.93,0.00021917,4]
[330997622,1719997864402,-500.0,0.00021917,4]
[330997623,1719997864411,-500.0,0.00021917,4]
[330997624,1719997864420,-712.93,0.00021917,4]
[330997625,1719997864429,-500.0,0.00021917,4]
[330997626,1719997864439,-127.83077358,0.00021917,4]
[330997627,1719997864567,-585.09922642,0.00021917,4]
[330997628,1719997864578,-500.0,0.00021917,4]
[330997629,1719997864590,-231.08960149,0.00021917,4]
[330997630,1719997864603,-268.91039851,0.00021917,4]
[330997631,1719997864612,-712.93,0.00021917,4]
[330997632,1719997864622,-565.30917237,0.00021917,4]
[330997633,1719997864634,-500.0,0.00021917,4]
[330997634,1719997864644,-712.93,0.00021917,4]
[330997635,1719997864654,-500.0,0.00021917,4]
[330997636,1719997864663,-712.93,0.00021917,4]
[330997637,1719997864674,-500.0,0.00021917,4]
[330997638,1719997864683,-712.93,0.00021917,4]
[330997639,1719997864693,-500.0,0.00021917,4]
[330997640,1719997864703,-712.93,0.00021917,4]
[330997641,1719997864713,-197.69467631,0.00021917,4]
[330997642,1719997864722,-712.93,0.00021917,4]
[330997643,1719997864731,-504.6862645,0.00021917,4]
[330997644,1719997864741,-712.93,0.00021917,4]
[330997645,1719997864751,-712.93,0.00021917,4]
[330997646,1719997864761,-500.0,0.00021917,4]
[330997647,1719997864770,-712.93,0.00021917,4]
[330997648,1719997864781,-497.81610727,0.00021917,4]
[330997649,1719997864791,-712.93,0.00021917,4]
[330997650,1719997864800,-712.93,0.00021917,4]
[330997651,1719997864810,-712.93,0.00021917,4]
[330997652,1719997864820,-712.93,0.00021917,4]
[330997653,1719997864830,-712.93,0.00021917,4]
[330997654,1719997864840,-200.0,0.00021917,4]
[330997655,1719997864849,-703.23181526,0.00021917,4]
[330997656,1719997864869,-9.69818474,0.00021917,4]
[330997657,1719997864883,-200.0,0.00021917,4]
[330997658,1719997864895,-443.61452218,0.00021917,4]
[330997659,1719997865222,-151.0,0.00015,2]
[330997660,1719997865231,-151.0,0.00021,2]
[330997661,1719997865240,-101.53386833,0.00021236,2]
[330997662,1719997865252,-694.37442867,0.00021236,2]
[330997663,1719997865263,-1114.57531941,0.0002126,2]
[330997664,1719997865274,-700.19305351,0.0002126,2]
[330997665,1719997865285,-342.94622592,0.0002126,2]
[330997666,1719997865318,-544.11209665,0.0002126,2]
[330997667,1719997865330,-1999.2207303,0.0002126,2]
[330997668,1719997865342,-2067.83847703,0.0002126,2]
[330997669,1719997865354,-1311.27513302,0.0002126,2]
[330997670,1719997865364,-62.36322312,0.00021342,2]
[330997671,1719997865376,-102.48677688,0.00021342,2]
[330997672,1719997865386,-424.3,0.00021342,2]
[330997673,1719997865396,-804.12,0.00021907,3]
[330997674,1719997865405,-269.31547782,0.00021917,4]
[330997675,1719997865414,-200.0,0.00021917,4]
[330997676,1719997865424,-712.93,0.00021917,4]
[330997677,1719997865433,-500.0,0.00021917,4]
[330997678,1719997865443,-200.0,0.00021917,4]
[330997679,1719997865453,-407.18815023,0.00021917,4]
[330997680,1719997865467,-305.74184977,0.00021917,4]
[330997681,1719997865477,-506.96603252,0.00021917,4]
[330997682,1719997865487,-500.0,0.00021917,4]
[330997683,1719997865496,-712.93,0.00021917,4]
[330997684,1719997865506,-500.0,0.00021917,4]
[330997685,1719997865517,-500.0,0.00021917,4]
[330997686,1719997865528,-712.93,0.00021917,4]
[330997687,1719997865540,-200.0,0.00021917,4]
[330997688,1719997865552,-12.00857341,0.00021917,4]
[330997689,1719997865568,-240.55142659,0.00021917,4]
[330997690,1719997865578,-500.0,0.00021917,4]
[330997691,1719997865591,-500.06518102,0.00021917,4]
[330997696,1719997972543,548.35127894,0.00011199,2]
[330997697,1719997972578,504.4397306,0.00011199,2]
[330997698,1719997972610,1555.71282256,0.00011199,2]
[330997699,1719997972640,1078.78475978,0.00011199,2]
[330997700,1719997972670,1010.6392169,0.00011199,2]
[330997701,1719997972700,1250.44412902,0.00011199,2]
[330997702,1719997972729,1626.0716122,0.00011199,2]
[330997703,1719997972761,1370.74804601,0.00011199,2]
[330997704,1719997972791,1412.37109195,0.00011199,2]
[330997705,1719997972825,1290.34138626,0.00011199,2]
[330997706,1719997972855,1937.42863796,0.00011199,2]
[330997707,1719997972879,21999.35857182,0.00011199,2]
[330997708,1719997980065,271843.0,0.00025,60]
[330997709,1719998002111,927.061404,0.00025761,120]
[330997710,1719998002530,35584.691284,0.00011199,2]
[330997711,1719998016372,306091.0,0.00026,120]
[330997729,1719998202564,654.77149997,0.00011199,2]
[330997730,1719998268294,150.0,0.00011199,2]
[330997731,1719998268318,136.09365335,0.00011199,2]
[330997740,1719998330997,13.90634665,0.00011199,2]
[330997741,1719998331019,167.17549563,0.00011199,2]
[330997750,1719998677561,150.0,0.00011199,2]
[330997751,1719998677583,77.12084219,0.00011199,2]
[330997752,1719998731386,900.0,0.00011199,2]
[330997753,1719998731652,300.77106222,0.00011199,2]
[330997800,1719998960094,150.0,0.00011199,2]
[330997801,1719998960115,5.61220125,0.00011199,2]
[330997825,1719999032543,-241.0,0.00012213,2]
[330997826,1719999032553,-155.93987876,0.00012302,2]
[330997827,1719999032563,-184.28825684,0.00012927,2]
[330997828,1719999032572,-610.0,0.0001318,2]
[330997829,1719999032581,-134.5791773,0.00013899,2]
[330997830,1719999032592,-919.32000046,0.00013899,2]
[330997831,1719999032603,-630.85,0.00013899,2]
[330997832,1719999032615,-404.0000001,0.00013899,2]
[330997833,1719999032627,-326.34,0.00013899,2]
[330997834,1719999032640,-113.65712214,0.00013899,2]
[330997835,1719999032649,-191.75311827,0.00013899,2]
[330997836,1719999032659,-114.58975959,0.00013899,2]
[330997837,1719999032670,-176.43796948,0.00013899,2]
[330997838,1719999032679,-150.0,0.00013997,2]
[330997839,1719999032689,-217.5029699,0.00013998,2]
[330997840,1719999032698,-402.05125184,0.00013998,2]
[330997841,1719999032707,-500.0,0.00013998,2]
[330997842,1719999032717,-500.0,0.00013998,2]
[330997843,1719999032726,-500.0,0.00013998,2]
[330997844,1719999032736,-337.41339924,0.00013998,2]
[330997845,1719999032747,-162.58660076,0.00013998,2]
[330997846,1719999032757,-343.70583758,0.00013998,2]
[330997847,1719999032766,-75549.96064167,0.00013999,2]
[330997848,1719999032777,-816.22757225,0.00013999,2]
[330997849,1719999032789,-2109.43741355,0.00013999,2]
[330997850,1719999032801,-2012.29595931,0.00013999,2]
[330997851,1719999032813,-56217.06896824,0.00013999,2]
[330997852,1719999032825,-4462.52367967,0.00013999,2]
[330997853,1719999032837,-669.25199861,0.00013999,2]
[330997854,1719999032850,-1420.86797097,0.00013999,2]
[330997855,1719999032862,-517.9614323,0.00013999,2]
[330997856,1719999032874,-820.87408869,0.00013999,2]
[330997857,1719999032891,-403580.1381853,0.00013999,2]
[330997858,1719999032900,-232876.54909504,0.00013999,2]
[330997859,1719999032912,-1589.65904168,0.00013999,2]
[330997860,1719999032964,-6728.94505261,0.00013999,2]
[330997861,1719999032978,-2270.21204956,0.00013999,2]
[330997862,1719999032990,-606.65,0.00013999,2]
[330997863,1719999033002,-4782.84240991,0.00013999,2]
[330997864,1719999033013,-300582.23124922,0.00013999,2]
[330997868,1719999039320,-325.36667431,0.00013899,2]
[330997869,1719999039330,-121199.04558749,0.00013999,2]
[330997870,1719999039343,-5080.1458687,0.00013999,2]
[330997871,1719999039355,-17909.83889242,0.00013999,2]
[330997872,1719999039366,-210.93790146,0.00014299,2]
[330997873,1719999039375,-166.49811254,0.00014399,2]
[330997874,1719999039386,-141.4685485,0.00014456,2]
[330997875,1719999039398,-14.3214515,0.00014456,2]
[330997876,1719999039408,-193.26382296,0.00014499,2]
[330997877,1719999039419,-1610.78,0.00014699,2]
[330997878,1719999039429,-191.7531182,0.00014799,2]
[330997879,1719999039439,-291.02772898,0.00014799,2]
[330997880,1719999039449,-322.65423005,0.00014999,2]
[330997881,1719999039462,-2301.19829752,0.00014999,2]
[330997882,1719999039474,-2183.16426548,0.00014999,2]
[330997883,1719999039486,-914.0500234,0.00014999,2]
[330997884,1719999039498,-2166.78342138,0.00014999,2]
[330997885,1719999039510,-1009.91881608,0.00014999,2]
[330997886,1719999039672,-542.62704013,0.00014999,2]
[330997888,1719999039684,-6628.30439943,0.00014999,2]
[330997890,1719999039697,-19515.99079053,0.00014999,2]
[330997891,1719999039706,-700.0,0.00015,2]
[330997892,1719999039717,-240.0,0.00015285,2]
[330997893,1719999039727,-160.33,0.00015373,2]
[330997894,1719999039737,-160.33,0.00015533,2]
[330997895,1719999039748,-19223.2202388,0.00015658,2]
[330997896,1719999039760,-4676.7797612,0.00015658,2]
[330997897,1719999039770,-160.33,0.00015693,2]
[330997898,1719999039780,-191.7531182,0.00015699,2]
[330997899,1719999039791,-291.02772898,0.00015699,2]
[330997900,1719999039801,-160.33,0.00015854,2]
[330997901,1719999039812,-412.49,0.00015893,2]
[330997902,1719999039822,-200.0,0.00015912,2]
[330997903,1719999039833,-160.33,0.00016014,2]
[330997904,1719999039843,-160.33,0.00016174,2]
[330997905,1719999039854,-191.7531182,0.00016599,2]
[330997906,1719999039865,-291.02772898,0.00016599,2]
[330997907,1719999039875,-382.0,0.00016684,2]
[330997908,1719999039887,-224.99,0.00016686,2]
[330997909,1719999039899,-186.05,0.00016712,2]
[330997910,1719999039909,-5000.0,0.00017259,2]
[330997911,1719999039919,-500.0,0.0001726,2]
[330997912,1719999039929,-499.99,0.0001726,2]
[330997913,1719999039941,-191.7531182,0.00017499,2]
[330997914,1719999039950,-291.02772898,0.00017499,2]
[330997915,1719999039960,-10537.00283536,0.00017533,2]
[330997916,1719999039969,-745.05763195,0.00017899,2]
[330997917,1719999039984,-785.60005,0.00017899,2]
[330997918,1719999039997,-806.04945102,0.00017899,2]
[330997919,1719999040009,-380.21994964,0.00017899,2]
[330997920,1719999040021,-8277.10681739,0.00017899,2]
[330997921,1719999040031,-2001.73,0.00018062,2]
[330997922,1719999040040,-708.55510302,0.00018081,2]
[330997923,1719999040052,-3746.74181624,0.00018081,2]
[330997924,1719999040062,-3994.42164536,0.00018081,2]
[330997925,1719999040072,-412.49,0.00018157,2]
[330997926,1719999040084,-500.0,0.00018211,2]
[330997927,1719999040094,-583.18947895,0.00018364,2]
[330997928,1719999040107,-4894.76902435,0.00018364,2]
[330997929,1719999040119,-5556.73676619,0.00018364,2]
[330997930,1719999040132,-4021.51473051,0.00018364,2]
[330997931,1719999040143,-191.7531182,0.000184,2]
[330997932,1719999040154,-291.02772898,0.000184,2]
[330997933,1719999040165,-250.0,0.00018579,2]
[330997934,1719999040175,-250.0,0.00018579,2]
[330997935,1719999040186,-741.0,0.000188,3]
[330997936,1719999040196,-155.0,0.00018864,2]
[330997937,1719999040207,-185.99,0.00018894,2]
[330997938,1719999040217,-151.26,0.000189,2]
[330997939,1719999040227,-151.26,0.000189,2]
[330997940,1719999040237,-151.26,0.000189,2]
[330997941,1719999040247,-151.26,0.000189,2]
[330997942,1719999040257,-151.26,0.000189,2]
[330997943,1719999040267,-151.26,0.000189,2]
[330997944,1719999040277,-151.26,0.000189,2]
[330997945,1719999040288,-151.26,0.000189,2]
[330997947,1719999040298,-1250.0,0.00019,2]
[330997949,1719999040309,-419.96072613,0.00019,2]
[330997951,1719999040319,-419.96072613,0.00019,2]
[330997953,1719999040330,-419.96072613,0.00019,2]
[330997954,1719999040340,-221.43005781,0.00019,2]
[330997957,1719999040350,-155.0,0.00019069,2]
[330997958,1719999040360,-155.0,0.00019069,2]
[330997961,1719999040370,-1245.75,0.00019174,2]
[330997963,1719999040381,-250.0,0.00019178,2]
[330997965,1719999040391,-191.7531182,0.000193,2]
[330997966,1719999040402,-291.02772898,0.000193,2]
[330997968,1719999040412,-1250.0,0.000195,2]
[330997971,1719999040422,-168.25,0.00019597,2]
[330997974,1719999040433,-191.2,0.00019625,2]
[330997977,1719999040443,-1000.0,0.00019935,2]
[330997979,1719999040453,-400.52790858,0.0002,2]
[330997982,1719999040463,-166.48789305,0.0002,2]
[330997985,1719999040473,-166.48789305,0.0002,2]
[330997988,1719999040483,-166.48789305,0.0002,2]
[330997991,1719999040493,-166.48789305,0.0002,2]
[330997994,1719999040503,-166.48789305,0.0002,2]
[330997997,1719999040514,-166.48789305,0.0002,2]
[330998000,1719999040523,-166.48789305,0.0002,2]
[330998003,1719999040533,-166.48789305,0.0002,2]
[330998005,1719999040544,-166.48789305,0.0002,2]
[330998007,1719999040553,-166.48789305,0.0002,2]
[330998008,1719999040563,-166.48789305,0.0002,2]
[330998010,1719999040574,-166.48789305,0.0002,2]
[330998011,1719999040583,-166.48789305,0.0002,2]
[330998013,1719999040594,-166.48789305,0.0002,2]
[330998015,1719999040604,-166.48789305,0.0002,2]
[330998017,1719999040614,-166.48789305,0.0002,2]
[330998019,1719999040624,-166.48789305,0.0002,2]
[330998022,1719999040635,-166.48789305,0.0002,2]
[330998024,1719999040645,-166.48789305,0.0002,2]
[330998025,1719999040655,-166.48789305,0.0002,2]
[330998027,1719999040665,-166.48789305,0.0002,2]
[330998029,1719999040675,-166.48789305,0.0002,2]
[330998032,1719999040686,-166.48789305,0.0002,2]
[330998033,1719999040696,-166.48789305,0.0002,2]
[330998035,1719999040706,-166.48789305,0.0002,2]
[330998036,1719999040717,-166.48789305,0.0002,2]
[330998037,1719999040727,-166.48789305,0.0002,2]
[330998038,1719999040737,-166.48789305,0.0002,2]
[330998039,1719999040747,-191.7531182,0.000202,2]
[330998040,1719999040757,-291.02772898,0.000202,2]
[330998041,1719999040767,-155.79,0.00020238,2]
[330998042,1719999040777,-412.49,0.00020421,2]
[330998043,1719999040788,-3586.37858198,0.00020432,2]
[330998044,1719999040798,-164.85,0.00020521,2]
[330998045,1719999040808,-424.3,0.00020521,2]
[330998046,1719999040818,-354.83,0.00020521,2]
[330998047,1719999040828,-424.3,0.00020521,2]
[330998048,1719999040838,-354.83,0.00020521,2]
[330998049,1719999040847,-164.78,0.00020521,2]
[330998050,1719999040857,-424.3,0.00020521,2]
[330998051,1719999040866,-354.83,0.00020521,2]
[330998052,1719999040876,-424.3,0.00020521,2]
[330998053,1719999040890,-354.83,0.00020521,2]
[330998054,1719999040904,-567.35,0.00020521,2]
[330998055,1719999040914,-354.83,0.00020521,2]
[330998056,1719999040929,-354.83,0.00020521,2]
[330998057,1719999040939,-423.73,0.00020521,2]
[330998058,1719999040949,-354.83,0.00020521,2]
[330998059,1719999040960,-354.83,0.00020521,2]
[330998060,1719999040972,-151.64167202,0.00020664,2]
[330998061,1719999040983,-154.17138077,0.00020699,2]
[330998062,1719999040993,-155.04457594,0.00020701,2]
[330998063,1719999041003,-155.04457594,0.00020828,2]
[330998064,1719999041014,-151.90297205,0.0002085,2]
[330998065,1719999041024,-160.49237674,0.00020876,2]
[330998066,1719999041034,-1300.0,0.00021,2]
[330998067,1719999041044,-493.21955465,0.00021,2]
[330998068,1719999041053,-154.4114992,0.00021042,2]
[330998069,1719999041063,-160.49237674,0.00021058,2]
[330998070,1719999041074,-191.7531182,0.000211,2]
[330998071,1719999041084,-291.02772898,0.000211,2]
[330998072,1719999041094,-154.17138077,0.00021106,2]
[330998073,1719999041104,-154.17138077,0.00021131,2]
[330998074,1719999041114,-166.66666666,0.00021175,2]
[330998075,1719999041124,-155.04457594,0.00021184,2]
[330998076,1719999041134,-164.8759283,0.00021191,2]
[330998077,1719999041143,-7467.23,0.00021242,2]
[330998078,1719999041153,-418.89,0.00021256,2]
[330998079,1719999041163,-156.05809953,0.00021292,2]
[330998080,1719999041172,-154.17138077,0.000213,2]
[330998081,1719999041182,-154.17138077,0.00021323,2]
[330998082,1719999041192,-150.0,0.00021329,2]
[330998083,1719999041202,-346.34,0.00021342,2]
[330998084,1719999041211,-354.72,0.00021342,2]
[330998085,1719999041221,-155.23746037,0.00021343,2]
[330998086,1719999041428,-151.64167202,0.00021468,2]
[330998087,1719999041456,-156.63163005,0.0002149,2]
[330998088,1719999041465,-150.62865123,0.00021516,2]
[330998089,1719999041476,-151.26,0.00021602,2]
[330998090,1719999041485,-50032.17780041,0.00021612,2]
[330998091,1719999041496,-344.11,0.00021644,2]
[330998092,1719999041505,-155.85316028,0.00021647,2]
[330998093,1719999041515,-150.62865123,0.00021649,2]
[330998094,1719999041524,-154.17138077,0.00021683,2]
[330998095,1719999041534,-166.66666987,0.000217,2]
[330998096,1719999041543,-452.35890675,0.00021741,2]
[330998097,1719999041599,-47.64109325,0.00021741,2]
[330998098,1719999041609,-200.0,0.00021741,2]
[330998099,1719999041618,-151.26,0.00021807,2]
[330998100,1719999041629,-199.2846,0.00021817,2]
[330998101,1719999041643,-252.23117298,0.00021817,2]
[330998102,1719999041654,-778.63202683,0.00021817,2]
[330998103,1719999041665,-1295.8075908,0.00021817,2]
[330998104,1719999041677,-165.87540939,0.00021817,2]
[330998105,1719999041687,-1085.46589125,0.00021817,2]
[330998106,1719999041698,-729.82228752,0.00021817,2]
[330998107,1719999041816,-166.48789305,0.0002,2]
[330998108,1719999041826,-166.48789305,0.0002,2]
[330998109,1719999041836,-166.48789305,0.0002,2]